Cogmind - Beta 15 @@@ ROGUE MODE // 2025.05.13 @ 08:31:10 Player: Dosh Result: Destroyed by Y-54 Guardian with Gatling Laser Performance ------------- Evolutions (3) 1500 Regions Visited (10) 2000 Robots Destroyed (166) 830 Value Destroyed (4588) 4588 Prototype IDs (14) 280 Alien Tech Used (0) 0 Bonus (1128) 1128 TOTAL SCORE: 10326 Bonus ------- High Alert Combat Kills 15 Follower Combat Kills 940 Entered Garrisons 200 Friendly Fire -27 Cogmind --------- Core Integrity 0/700 Matter 300/300 Energy 125/125 System Corruption 5% Temperature Cool (6) Movement Flying (26) Location -7/Storage Parts ------- > --- POWER (1) -------- Light Ion Engine > --- PROPULSION (4) --- Cooled VTOL Module Cooled VTOL Module > --- UTILITY (6) ------ Advanced Signal Interpreter Hacking Suite Hacking Suite Tractor Beam > --- WEAPON (2) ------- Great Axe > --- INVENTORY (5) ---- Powered Armor Trap Extractor (0/4) Heavy Missile Launcher Peak State ------------ > --- POWER ------------ Micro Fission Core > --- PROPULSION ------- Cooled VTOL Module Cooled VTOL Module Cooled VTOL Module Cooled VTOL Module > --- UTILITY ---------- Experimental Sensor Array Advanced Signal Interpreter Hacking Suite Hacking Suite Hacking Suite System Shield > --- WEAPON ----------- Improved Datajack Great Axe > --- INVENTORY -------- Transport Network Coupler Powered Armor Hacking Suite Trap Extractor Heavy Missile Launcher [Rating: 60] Favorites ----------- Power Heavy Ion Engine Engine Heavy Ion Engine Power Core Micro Fission Core Propulsion Light Treads Treads Light Treads Flight Unit Cooled VTOL Module Utility Hacking Suite Device Cooling System Storage High-capacity Storage Unit Processor Advanced Signal Interpreter Hackware Hacking Suite Protection Improved Light Armor Plating Weapon Spread Laser Energy Gun Spread Laser Energy Cannon Advanced Beam Cannon Ballistic Gun Assault Rifle Launcher Heavy Missile Launcher Slashing Weapon Great Axe Special Melee Weapon Improved Datajack Build | -11 -10 -10 -9 -9 -8 -8 -7 -7 -7 -7 ------- Run | Yrd Mat Min Mat Min Mat Gar Fac Was Fac Sto Slots Evolved 6 | . . . 2 . 2 . 2 . . . Power . | . . . . . . . . . . . Propulsion 2 | . . . 1 . 1 . . . . . Utility 4 | . . . 1 . 1 . 2 . . . Weapon . | . . . . . . . . . . . Parts Attached 109 | 6 6 8 24 2 17 7 22 1 13 3 Power 11 | 1 2 . 2 . . 1 3 1 . 1 Engine 10 | 1 2 . 2 . . 1 3 . . 1 Core 1 | . . . . . . . . 1 . . Reactor . | . . . . . . . . . . . Propulsion 37 | 2 . 2 11 1 8 3 6 . 4 . Treads 27 | 2 . 1 11 1 8 3 1 . . . Leg . | . . . . . . . . . . . Wheel . | . . . . . . . . . . . Hover . | . . . . . . . . . . . Flight 10 | . . 1 . . . . 5 . 4 . Utility 33 | 1 2 3 4 . 6 1 9 . 5 2 Device 12 | . 1 1 3 . 2 . 2 . 1 2 Storage 3 | 1 1 . . . 1 . . . . . Processor 2 | . . . . . . . 1 . 1 . Hackware 6 | . . 1 . . . . 3 . 2 . Protection 10 | . . 1 1 . 3 1 3 . 1 . Artifact . | . . . . . . . . . . . Weapon 28 | 2 2 3 7 1 3 2 4 . 4 . Energy Gun 8 | 2 . . 3 1 . 2 . . . . Energy Cannon 4 | . . . 2 . . . . . 2 . Ballistic Gun 6 | . 2 3 1 . . . . . . . Ballistic Cannon . | . . . . . . . . . . . Launcher 3 | . . . . . 2 . . . 1 . Special Weapon . | . . . . . . . . . . . Impact Weapon . | . . . . . . . . . . . Slashing Weapon 4 | . . . . . 1 . 3 . . . Piercing Weapon . | . . . . . . . . . . . Special Melee Weapon 3 | . . . 1 . . . 1 . 1 . Unidentified Prototypes 6 | . . 1 2 . . . . . 2 1 Corrupted Parts 2 | . . 2 . . . . . . . . System Corruption 7 | . . 7 . . . . . . . . Parts Lost 36 | . 1 2 . . 3 8 13 . 7 2 Power 4 | . 1 . . . . . 2 . 1 . Propulsion 14 | . . 2 . . 1 5 4 . 1 1 Utility 12 | . . . . . 2 1 4 . 4 1 Weapon 6 | . . . . . . 2 3 . 1 . Highest Loss Streak 7 | . 1 1 . . 1 7 5 . 4 2 To Critical Strikes . | . . . . . . . . . . . Average Backups 16 | . 9 14 19 20 22 19 14 5 4 3 Power . | . . . . 1 1 . . . . . Propulsion 4 | . 4 4 5 6 7 4 2 . . . Utility 6 | . 1 5 7 7 8 11 8 3 3 2 Weapon 3 | . 3 4 4 4 4 2 1 2 1 1 Tool/Special . | . . . . . . . . . . . Unused Backups 17 | . 1 1 13 . . . 2 . . . Power 1 | . . . 1 . . . . . . . Propulsion 4 | . . 1 3 . . . . . . . Utility 5 | . . . 4 . . . 1 . . . Weapon 7 | . 1 . 5 . . . 1 . . . Tool/Special . | . . . . . . . . . . . Average Slot Usage (%) 97 | . 90 99 98 100 99 99 90 100 97 61 Engine 9 | . 13 14 11 11 9 8 6 3 . 3 Treads 26 | . 27 27 31 33 35 35 14 . . . Flight 5 | . . . . . . . 11 30 29 20 Device 7 | . 5 1 9 11 8 9 6 7 6 3 Storage 8 | . 14 14 11 11 9 9 4 . . . Processor 1 | . . . . . . . 2 7 7 7 Hackware 11 | . . . 11 11 9 9 17 30 29 18 Protection 4 | . . 12 . . 8 9 7 . . . Energy Gun 11 | . 4 . 16 22 17 15 8 . . . Ballistic Gun 4 | . 22 28 1 . . . . . . . Slashing Weapon 1 | . . . . . . 1 3 7 6 5 Special Melee Weapon 1 | . . . . . . . 2 7 5 . Peak Build Rating 60 | 6 8 15 23 21 31 31 52 54 60 37 Average Rating 26 | 3 7 9 19 20 28 28 36 53 55 31 On Entrance 23 | . 6 8 13 20 21 30 28 52 54 31 Naked Turns . | . . . . . . . . . . . Heaviest Build 112 | 14 50 52 57 56 103 103 112 16 20 8 Greatest Support 88 | 40 40 40 60 60 82 82 88 21 28 15 Greatest Overweight (x) 5 | . 1 2 1 . 1 1 5 . . . Average Overweight (x) . | . . 1 . . . 1 . . . . Largest Inventory Capacity 25 | 8 20 20 20 20 25 25 25 5 5 5 Average Capacity 18 | 6 16 20 20 20 23 25 17 5 5 5 Most Carried 25 | 2 13 19 20 20 25 25 22 5 5 5 Average Carried 16 | . 9 15 19 20 23 20 14 5 4 3 Final Capacity 25 | 8 20 20 20 20 25 25 5 5 5 5 Final Carried 25 | 2 12 19 20 20 25 21 5 5 5 3 Class Distribution -------------------- 69% | Mutant 15% | Hacker-Sprinter 11% | Scavenger-Mutant 3% | Hacker-Mutant Dominant Class ---------------- Mutant | -10/Materials Mutant | -10/Mines Mutant | -9/Materials Mutant | -9/Mines Mutant | -8/Materials Scavenger-Mutant | -8/Garrison Hacker-Mutant | -7/Factory Hacker-Sprinter | -7/Waste Hacker-Sprinter | -7/Factory Hacker-Sprinter | -7/Storage Resources | -11 -10 -10 -9 -9 -8 -8 -7 -7 -7 -7 ----------- Run | Yrd Mat Min Mat Min Mat Gar Fac Was Fac Sto Matter Collected 2409 | 185 507 157 296 28 289 234 80 195 398 40 Remotely 20 | . . . . . . . . . . 20 Salvage Created 4649 | . 787 265 1298 60 1114 234 400 . 325 166 Parts 291 | . 48 28 100 3 64 12 15 . 16 5 Haulers Intercepted 16 | . 2 . 6 . 6 . . . 2 . Recyclers Shooed 5 | . 1 . 4 . . . . . . . Parts Field Recycled . | . . . . . . . . . . . Retrieved Matter . | . . . . . . . . . . . Parts Self-Destructed . | . . . . . . . . . . . Prevented . | . . . . . . . . . . . Kills | -11 -10 -10 -9 -9 -8 -8 -7 -7 -7 -7 ------- Run | Yrd Mat Min Mat Min Mat Gar Fac Was Fac Sto Combat Hostiles Destroyed 114 | . 17 11 28 2 33 11 11 . 1 . Melee 2 | . . . . . . . 1 . 1 . Guns 99 | . 17 11 22 2 28 9 10 . . . Cannons 5 | . . . 5 . . . . . . . AOE 8 | . . . 1 . 5 2 . . . . Classes Destroyed 18 | . 7 2 3 . 3 2 1 . . . Worker 5 | . 1 . . . 2 . 1 . 1 . Builder 6 | . 1 . 2 . 2 . 1 . . . Tunneler 4 | . . 1 2 . . . . . 1 . Hauler 16 | . 2 . 6 . 6 . . . 2 . Recycler 6 | . 1 . 1 . 1 . 1 . . 2 Mechanic 1 | . . . . . 1 . . . . . Operator 4 | . . . 2 . 1 . 1 . . . Watcher 11 | . 3 . 2 . 2 . . . 4 . Swarmer 31 | . 6 6 4 . 13 . 2 . . . Cutter 3 | . . . . . . 3 . . . . Grunt 49 | . 11 4 12 1 11 4 6 . . . Brawler 3 | . . . 2 1 . . . . . . Duelist 1 | . . . . . 1 . . . . . Sentry 21 | . . . 10 . 7 3 1 . . . Specialist 1 | . . . . . . 1 . . . . Hunter 1 | . . . . . 1 . . . . . Programmer 3 | . . . . . . . 2 . 1 . Assembled 1 | . . 1 . . . . . . . . Best Kill Streak 8 | . 5 5 4 2 5 6 8 . 2 2 Combat Bots Only 7 | . 3 5 4 2 4 6 7 . 1 . Max Kills in Single Turn 3 | . 1 1 2 1 3 2 1 . 1 1 Gunslinging . | . . . . . . . . . . . Exploded 2 | . . . 1 . 2 2 . . . . Melee 1 | . . . . . . . 1 . 1 . Uniques/NPCs Destroyed . | . . . . . . . . . . . Combat | -11 -10 -10 -9 -9 -8 -8 -7 -7 -7 -7 -------- Run | Yrd Mat Min Mat Min Mat Gar Fac Was Fac Sto Hostile Shots Fired 761 | . 73 38 66 2 121 83 257 . 80 41 Missed 289 | . 14 6 23 1 37 23 117 . 43 25 Hits 472 | . 59 32 43 1 84 60 140 . 37 16 Melee 17 | . . . 4 1 . 7 . . 5 . Projectile 455 | . 59 32 39 . 84 53 140 . 32 16 AOE 8 | . 1 . . . . 3 . . 4 . Critical Strikes 17 | . 1 1 4 1 2 2 1 . 5 . Part Disruptions 1 | . . 1 . . . . . . . . Damage Taken 6987 | . 687 332 816 34 1202 1168 1721 . 862 165 Core 1170 | . 149 57 88 34 59 83 295 . 344 61 Absorbed by Shields 8 | . . . . . . . 8 . . . Regen/Repaired (Parts) 213 | . 107 . 3 . 31 . 11 31 30 . Core Remaining (%) 65 | 100 . 17 . 69 . 74 . . . . Volleys Fired 360 | . 68 20 83 4 114 23 38 . 10 . Largest 2 | . 2 2 2 2 2 2 2 . 1 . Hottest 136 | . 90 45 136 130 130 130 130 . 39 . Shots Fired 699 | . 136 39 166 8 224 41 75 . 10 . Gun 653 | . 136 39 138 8 220 37 75 . . . Cannon 28 | . . . 28 . . . . . . . Launcher 18 | . . . . . 4 4 . . 10 . Special . | . . . . . . . . . . . Kinetic 155 | . 114 39 2 . . . . . . . Thermal 515 | . 11 . 164 8 220 37 75 . . . Explosive 18 | . . . . . 4 4 . . 10 . Electromagnetic 11 | . 11 . . . . . . . . . Robot Hit Streak 20 | . 8 6 20 3 19 15 17 . 4 . Robot Miss Streak 8 | . 3 2 7 2 8 7 7 . 1 . Penetration Max . | . . . . . . . . . . . Secondary Targets 3 | . . . . . 2 . 1 . . . Max Gunslinging Chain 1 | . . . . . 1 . 1 . . . Shots Hit Robots 590 | . 84 24 141 7 203 35 77 . 17 2 Core Hits 666 | . 43 16 168 9 259 55 88 . 26 2 Critical Kills 2 | . 1 . 1 . . . . . . . Critical Parts Destroyed 1 | . 1 . . . . . . . . . Critical Strikes 6 | . 3 . 1 . . . 1 . 1 . Burn 1 | . 1 . . . . . . . . . Meltdown 1 | . . . 1 . . . . . . . Destroy 2 | . 2 . . . . . . . . . Sever 2 | . . . . . . . 1 . 1 . Melee Attacks 79 | . . . . . 1 6 29 . 38 5 Impact . | . . . . . . . . . . . Slashing 78 | . . . . . 1 6 29 . 37 5 Piercing . | . . . . . . . . . . . Sneak Attacks 6 | . . . . . . . 1 . 3 2 Combat Hostiles . | . . . . . . . . . . . Follow-up Attacks . | . . . . . . . . . . . Damage Inflicted 11273 | . 1211 309 2313 121 3437 996 1529 . 1224 133 Guns 7618 | . 1087 300 1772 99 2723 580 1057 . . . Cannons 380 | . . . 380 . . . . . . . Explosions 2130 | . 95 . 100 . 708 416 131 . 680 . Melee 1010 | . . . . . . . 333 . 544 133 Ramming 135 | . 29 9 61 22 6 . 8 . . . Kinetic 1227 | . 909 300 18 . . . . . . . Thermal 6882 | . 158 . 2134 99 2723 580 1188 . . . Explosive 1904 | . . . 100 . 708 416 . . 680 . Electromagnetic 115 | . 115 . . . . . . . . . Impact . | . . . . . . . . . . . Slashing 1010 | . . . . . . . 333 . 544 133 Piercing . | . . . . . . . . . . . Highest Corruption 7 | . . 7 . . 4 4 2 2 4 5 Average Corruption 2 | . . 3 . . 2 4 1 2 2 4 Corruption Purged 1 | . . . . . . . 1 . . . Corruption Blocked . | . . . . . . . . . . . Effects 56 | . . 3 . . 10 16 1 1 23 2 Message Errors 18 | . . 1 . . 3 6 . . 7 1 Matter Fused 16 | . . 1 . . 1 6 . 1 7 . Heat Flow Errors 8 | . . . . . 4 1 1 . 2 . Energy Discharges 2 | . . . . . . 1 . . . 1 Parts Rejected 2 | . . . . . . . . . 2 . Data Loss (minor) 4 | . . . . . 1 1 . . 2 . Data Loss (major) 2 | . . . . . 1 1 . . . . Alerts 3 | . . . . . . . . . 3 . Weapon Failures 1 | . . 1 . . . . . . . . Overload Shots . | . . . . . . . . . . . Overflow Damage 268 | . . . . . 26 . 117 . 125 . Projectiles . | . . . . . . . . . . . Explosions 26 | . . . . . 26 . . . . . Melee 242 | . . . . . . . 117 . 125 . Knockbacks 2 | . . . 2 . . . . . . . Impact 2 | . . . 2 . . . . . . . Kinetic . | . . . . . . . . . . . Secondary . | . . . . . . . . . . . Self-Inflicted Damage 457 | . 31 . 99 . 58 152 73 . 44 . Shots 10 | . 1 . 1 . 2 3 1 . 2 . Rammed 16 | . 8 2 4 2 . . . . . . Targets Rammed 19 | . 8 3 4 2 1 . 1 . . . Kicked . | . . . . . . . . . . . Crushed 3 | . . 1 . . 1 . 1 . . . Highest Temperature 280 | . 120 34 96 . 226 204 280 . 151 . Average Temperature 54 | . 37 14 21 . 31 84 114 . 48 . Received Heat Transfer 1979 | . 279 122 276 . 486 342 390 . 54 30 Effects 2 | . . . . . . . 2 . . . Energy Bleed 2 | . . . . . . . 2 . . . Siege Activations . | . . . . . . . . . . . Martial Activations . | . . . . . . . . . . . Shielding Activations . | . . . . . . . . . . . Robots Disrupted . | . . . . . . . . . . . Combat Hostiles . | . . . . . . . . . . . Robots Corrupted . | . . . . . . . . . . . Combat Hostiles . | . . . . . . . . . . . Parts Fried . | . . . . . . . . . . . Impact Corruptions . | . . . . . . . . . . . Robots Melted 1 | . . . 1 . . . . . . . Combat Hostiles . | . . . . . . . . . . . Parts Melted 9 | . . . 6 . 3 . . . . . Heat Transferred 8835 | . 409 . 2866 120 3340 720 1380 . . . Parts Sabotaged . | . . . . . . . . . . . Parts Stolen . | . . . . . . . . . . . Parts Stripped . | . . . . . . . . . . . Power Chain Reactions 2 | . 2 . . . . . . . . . Alert | -11 -10 -10 -9 -9 -8 -8 -7 -7 -7 -7 ------- Run | Yrd Mat Min Mat Min Mat Gar Fac Was Fac Sto Maximum Alert Level 2 | . . . 1 . . 1 1 . 2 1 Low Security (%) 83 | 100 100 100 86 100 100 17 80 100 40 69 Level 1 14 | . . . 13 . . 82 19 . 44 30 Level 2 1 | . . . . . . . . . 14 . Level 3 . | . . . . . . . . . . . Level 4 . | . . . . . . . . . . . Level 5 . | . . . . . . . . . . . High Security . | . . . . . . . . . . . Max Security . | . . . . . . . . . . . Peak Influence 615 | . 159 90 251 88 163 357 258 84 615 245 Initial 186 | . . 31 17 88 11 58 186 84 . 143 Average 100 | . 68 22 107 21 65 212 126 38 225 179 Influence Increases 6429 | . 601 231 969 78 1105 379 775 . 2129 162 Destroy 0b10 Robot/C 2900 | . 340 200 560 60 700 220 220 . 600 . Destroy 0b10 Robot/NC 290 | . 40 5 75 . 80 . 20 . 60 10 Destroy Leader 708 | . 90 20 176 10 178 10 60 . 164 . Allied During Kill 545 | . . . . 8 14 . . . 523 . Trap Triggered on 0b10 50 | . . . . . . . . . 50 . Successful Hack 110 | . 17 6 20 . 10 . 16 . 26 15 Select Force Hacks 120 | . 60 . 60 . . . . . . . Disable Machine 195 | . . . 15 . 15 . 45 . 120 . Anti-Garrison Action 100 | . . . . . . 100 . . . . Destroy Structure 451 | . 9 . 33 . 33 49 54 . 271 2 Partial Spotted 105 | . 15 . . . . . 15 . 60 15 Lose Combat Pursuer 855 | . 30 . 30 . 75 . 345 . 255 120 Influence Decreases 6184 | . 518 268 787 276 1045 112 892 240 1814 232 Entered New Map 771 | . . 52 29 140 19 32 171 156 . 172 Time Decay 3135 | . 508 206 542 136 660 . 454 84 505 40 Search Patrol Dispatched 150 | . . . . . . . . . 150 . Lost Part 350 | . 10 10 . . 30 80 130 . 70 20 Lost Ally 463 | . . . . . 40 . 137 . 286 . Purge Threat 1315 | . . . 216 . 296 . . . 803 . Squads Dispatched 38 | . 3 . 3 . 5 . 14 . 13 . Investigation 14 | . 3 . 2 . 1 . 3 . 5 . Extermination 5 | . . . . . . . 2 . 3 . Reinforcement 12 | . . . 1 . 1 . 6 . 4 . Assault . | . . . . . . . . . . . Garrison 7 | . . . . . 3 . 3 . 1 . Intercept . | . . . . . . . . . . . Searches Triggered 1 | . . . . . . . . . 1 . Construction Impeded 1 | . . . . . . . . . 1 . Haulers Reinforced . | . . . . . . . . . . . Active Scanning Responses . | . . . . . . . . . . . Cargo Convoy Interrupts 1 | . . . . . . . . . 1 . Stealth | -11 -10 -10 -9 -9 -8 -8 -7 -7 -7 -7 --------- Run | Yrd Mat Min Mat Min Mat Gar Fac Was Fac Sto Distress Signals 16 | . . . 2 . 5 1 2 . 4 2 Communications Jammed . | . . . . . . . . . . . Distress Signals . | . . . . . . . . . . . Times Spotted 264 | . 25 13 42 3 59 14 50 . 39 19 Peak Tracking Total 11 | . 3 4 4 3 6 7 10 . 11 11 Tactical Retreats 28 | . 2 1 2 . 3 . 12 . 5 3 Traps | -11 -10 -10 -9 -9 -8 -8 -7 -7 -7 -7 ------- Run | Yrd Mat Min Mat Min Mat Gar Fac Was Fac Sto Traps Triggered 15 | . 4 . . . 4 2 2 . 3 . Indirectly . | . . . . . . . . . . . Trap Hack Attempts 90 | . . . 45 . . . . . 45 . Triggered 1 | . . . 1 . . . . . . . Disarmed 10 | . . . . . . . . . 10 . Reprogrammed 12 | . . . 4 . . . . . 8 . Reused 5 | . . . . . . . . . 5 . Traps Extracted 4 | . . . 4 . . . . . . . Installed 4 | . . . . . . . . . 4 . Triggered 5 | . . . . . . . . . 5 . Most Traps Carried 4 | . . . 4 4 4 4 4 4 4 . Machines | -11 -10 -10 -9 -9 -8 -8 -7 -7 -7 -7 ---------- Run | Yrd Mat Min Mat Min Mat Gar Fac Was Fac Sto Machines Disabled 14 | . . . 1 . 1 1 3 . 8 . Max in Single Turn 3 | . . . 1 . . 1 3 . 1 . Garrison Access 3 | . . . . . . . . . 3 . Garrison Relay 1 | . . . . . . 1 . . . . Machines Repaired . | . . . . . . . . . . . Machines Dismantled . | . . . . . . . . . . . Machines Sabotaged . | . . . . . . . . . . . Overloaded Fab Kills . | . . . . . . . . . . . Hacking | -11 -10 -10 -9 -9 -8 -8 -7 -7 -7 -7 --------- Run | Yrd Mat Min Mat Min Mat Gar Fac Was Fac Sto Machines Accessed 64 | . 11 3 12 . 11 2 3 . 21 1 Terminals 39 | . 8 1 7 . 7 2 1 . 12 1 Fabricators 5 | . . . . . . . . . 5 . Repair Stations 7 | . 1 . 2 . 1 . 2 . 1 . Recycling Units 4 | . 2 . 2 . . . . . . . Scanalyzers 3 | . . . 1 . 2 . . . . . Garrison Access 4 | . . . . . 1 . . . 3 . Total Hacks 183 | . 26 7 34 . 42 5 8 . 59 2 Successful 115 | . 14 3 25 . 25 3 4 . 40 1 Failed 66 | . 11 4 8 . 17 2 4 . 19 1 Catastrophic 12 | . 1 . . . 2 1 1 . 7 . Database Lockouts 2 | . 1 . 1 . . . . . . . Manual 98 | . 16 5 17 . 25 2 . . 31 2 Terminals 126 | . 20 5 20 . 33 5 2 . 39 2 Fabricators 14 | . . . . . . . . . 14 . Repair Stations 20 | . 4 . 6 . 2 . 6 . 2 . Recycling Units 4 | . 2 . 2 . . . . . . . Scanalyzers 12 | . . . 6 . 6 . . . . . Garrison Access 5 | . . . . . 1 . . . 4 . Terminal Hacks 44 | . 4 3 6 . 9 2 1 . 19 . Part Schematic 1 | . . . . . . . . . 1 . Robot Schematic 1 | . 1 . . . . . . . . . Robot Analysis 2 | . . 1 1 . . . . . . . Prototype ID Bank 4 | . 1 . 2 . 1 . . . . . Open Door 2 | . . 2 . . . . . . . . Branch Access Points 1 | . 1 . . . . . . . . . Emergency Access Points 1 | . . . . . . 1 . . . . Terminal Index 1 | . . . . . . . . . 1 . Alert Level 3 | . . . . . 1 . . . 2 . Unreport Threat 12 | . . . 2 . 4 . . . 6 . Locate Traps 3 | . 1 . . . 2 . . . . . Disarm Traps 1 | . . . . . . . . . 1 . Recall Investigation 2 | . . . . . . . . . 2 . Recall Extermination 2 | . . . . . . . . . 2 . Recall Reinforcements 3 | . . . . . . . 1 . 2 . Hauler Manifests 2 | . . . 1 . . . . . 1 . Zone Layout 2 | . . . . . 1 . . . 1 . Garrison Registry 1 | . . . . . . 1 . . . . Fabricator Hacks 11 | . . . . . . . . . 11 . Network Status 1 | . . . . . . . . . 1 . Load Schematic 5 | . . . . . . . . . 5 . Build 5 | . . . . . . . . . 5 . Repair Station Hacks 12 | . 2 . 3 . 2 . 3 . 2 . Scan Component 7 | . 1 . 2 . 1 . 2 . 1 . Repair 5 | . 1 . 1 . 1 . 1 . 1 . Recycling Unit Hacks . | . . . . . . . . . . . Scanalyzer 10 | . . . 6 . 4 . . . . . Insert Component 6 | . . . 3 . 3 . . . . . Analyze 4 | . . . 3 . 1 . . . . . Garrison Access Hacks 4 | . . . . . 1 . . . 3 . Unlock Access 1 | . . . . . 1 . . . . . Seal Access 3 | . . . . . . . . . 3 . Unauthorized Hacks 34 | . 8 . 10 . 9 1 . . 5 1 Terminals 28 | . 6 . 8 . 9 1 . . 3 1 Track 2 | . . . . . 1 . . . 1 . Assimilate 2 | . . . . . 1 . . . 1 . Botnet 4 | . 1 . 1 . 1 . . . 1 . Operators 3 | . . . 2 . 1 . . . . . Skim 16 | . 5 . 5 . 5 . . . . 1 Override 1 | . . . . . . 1 . . . . Fabricators 2 | . . . . . . . . . 2 . Prioritize 1 | . . . . . . . . . 1 . Haulers 1 | . . . . . . . . . 1 . Repair Stations . | . . . . . . . . . . . Recycling Units 4 | . 2 . 2 . . . . . . . Tunnel 4 | . 2 . 2 . . . . . . . Scanalyzers . | . . . . . . . . . . . Garrison Access . | . . . . . . . . . . . Data Cores Recovered 1 | . . . 1 . . . . . . . Used . | . . . . . . . . . . . Hacking Detections 46 | . 6 1 9 . 9 2 3 . 15 1 Full Trace Events 8 | . . . . . 2 . 1 . 5 . Feedback Events 1 | . . . . . . . 1 . . . Corruption 1 | . . . . . . . 1 . . . Feedback Blocked . | . . . . . . . . . . . Robot Schematics Acquired 1 | . 1 . . . . . . . . . Robots Built . | . . . . . . . . . . . Authchips . | . . . . . . . . . . . Time . | . . . . . . . . . . . Total Robot Build Rating . | . . . . . . . . . . . Part Schematics Acquired 5 | . . . 3 . 1 . . . 1 . Parts Built 5 | . . . . . . . . . 5 . Authchips . | . . . . . . . . . . . Time 335 | . . . . . . . . . 335 . Total Part Build Rating 20 | . . . . . . . . . 20 . Parts Repaired 5 | . 1 . 1 . 1 . 1 . 1 . Time 235 | . 26 . 53 . 32 . 68 . 56 . Parts Recycled . | . . . . . . . . . . . Recycled Matter . | . . . . . . . . . . . Retrieved Matter . | . . . . . . . . . . . Retrieved Components . | . . . . . . . . . . . Parts Scanalyzed 4 | . . . 3 . 1 . . . . . Part Schematics Acquired 4 | . . . 3 . 1 . . . . . Parts Damaged 1 | . . . . . 1 . . . . . Bothacking | -11 -10 -10 -9 -9 -8 -8 -7 -7 -7 -7 ------------ Run | Yrd Mat Min Mat Min Mat Gar Fac Was Fac Sto Used RIF Installer . | . . . . . . . . . . . Robots Hacked . | . . . . . . . . . . . Non-combat . | . . . . . . . . . . . Combat . | . . . . . . . . . . . Robot Hacks Applied . | . . . . . . . . . . . Relay Couplers Released 3 | . . . . . . 3 . . . . Machine Destruction 3 | . . . . . . 3 . . . . Fabnet Peak Effective % . | . . . . . . . . . . . Robots Rewired . | . . . . . . . . . . . Allies Hacked . | . . . . . . . . . . . Hacks Repelled . | . . . . . . . . . . . Allies | -11 -10 -10 -9 -9 -8 -8 -7 -7 -7 -7 -------- Run | Yrd Mat Min Mat Min Mat Gar Fac Was Fac Sto Total Allies 24 | . . . . 3 . . . 20 1 . Largest Group 20 | . . . . 2 2 . . 20 20 . Highest-Rated Group 512 | . . . . 43 43 . . 512 512 . Highest-Rated Ally 35 | . . . . 31 31 . . 35 35 . Total Orders 15 | . . . . . . . 15 . . . EXPLORE 15 | . . . . . . . 15 . . . Ally Attacks 182 | . . . . 2 16 . . . 164 . Total Damage 4615 | . . . . 41 212 . . . 4362 . Kills 40 | . . . . 1 3 . . . 36 . Allies Corrupted 1 | . . . . . . . . . 1 . Allies Melted . | . . . . . . . . . . . Intel | -11 -10 -10 -9 -9 -8 -8 -7 -7 -7 -7 ------- Run | Yrd Mat Min Mat Min Mat Gar Fac Was Fac Sto Active Infowar (turns) 2625 | . 757 88 . . . . 13 203 1564 . Sensors 1728 | . . . . . . . 13 203 1512 . Structural 845 | . 757 88 . . . . . . . . T.N.C. 52 | . . . . . . . . . 52 . Robot Analysis Total 2 | . . 1 1 . . . . . . . Derelict Logs Recovered 2 | . . 1 . 1 . . . . . . Drone Launches 44 | . . . . . . . 44 . . . Drone Recoveries 24 | . . . . . . . 24 . . . Exploration | -11 -10 -10 -9 -9 -8 -8 -7 -7 -7 -7 ------------- Run | Yrd Mat Min Mat Min Mat Gar Fac Was Fac Sto Turns Passed 14203 | 78 1831 860 2433 706 4237 863 1272 203 1636 84 Spaces Moved 9322 | 46 710 299 1117 421 1576 303 872 238 3539 201 Core 5 | 5 . . . . . . . . . . Treads 4701 | 41 710 299 1117 421 1576 303 234 . . . Legs . | . . . . . . . . . . . Wheels . | . . . . . . . . . . . Hover . | . . . . . . . . . . . Flight 4616 | . . . . . . . 638 238 3539 201 Fastest Speed 14 | 50 160 240 160 160 160 235 29 29 14 26 Average Speed 116 | 148 214 240 165 160 213 237 101 29 26 30 Slowest Speed 379 | 160 240 320 240 160 242 240 379 29 29 32 Overloaded Moves 83 | . . . . . . . . . 82 1 Propulsion Burnouts . | . . . . . . . . . . . Robots Hopped 20 | . . . . . . . 2 . 9 9 Potential Cave-ins . | . . . . . . . . . . . Cave-ins Triggered . | . . . . . . . . . . . Exploration Rate (%) 69 | 4 98 72 94 92 91 40 67 79 80 49 Regions Visited 10 Branch Regions 3 Pre-discovered Areas 12 | . 3 . 6 1 2 . . . . . Known Exits Taken 6 | . 1 1 1 1 1 . . . 1 . Unknown Exits Taken 1 | 1 . . . . . . . . . . Scrap Searched 3 | . . 1 . 2 . . . . . . Spaces Dug 53 | . . . . . 11 . 19 . 20 3 Terrain Destroyed 315 | . 5 . 32 . 41 43 55 . 136 3 Melee 43 | . . . . . 1 . 19 . 20 3 Projectile . | . . . . . . . . . . . AOE 272 | . 5 . 32 . 40 43 36 . 116 . Terrain Rammed . | . . . . . . . . . . . Walls Destroyed . | . . . . . . . . . . . Machines Disabled . | . . . . . . . . . . . Actions | -11 -10 -10 -9 -9 -8 -8 -7 -7 -7 -7 --------- Run | Yrd Mat Min Mat Min Mat Gar Fac Was Fac Sto Total 11777 | 53 874 402 1553 446 2213 392 1127 371 4140 206 Wait 1579 | . 57 61 218 14 476 43 122 132 453 3 Move 9278 | 45 709 298 1116 420 1576 302 868 237 3522 185 Hop 16 | . . . . . . . 2 . 7 7 Pick Up 65 | 2 13 8 22 1 8 2 6 . 3 . Fast Attach 46 | 6 9 . 7 . 5 2 6 1 8 2 Attach 35 | . 1 1 2 . 6 7 14 . 2 2 Detach 7 | . 1 . . . 1 . 2 . 2 1 Swap 74 | . 2 8 19 2 16 7 8 . 12 . Drop 83 | . 6 3 37 3 9 . 13 1 10 1 Fire 360 | . 68 20 83 4 114 23 38 . 10 . Melee 79 | . . . . . 1 6 29 . 38 5 Ram . | . . . . . . . . . . . Kick . | . . . . . . . . . . . Crush 19 | . 8 3 4 2 1 . 1 . . . Escape Stasis 42 | . . . . . . . 18 . 24 . Rewire . | . . . . . . . . . . . Trap 94 | . . . 45 . . . . . 49 . Miscellaneous . | . . . . . . . . . . . Route ------- -11/Scrapyard -10/Materials (discovered 6 exits: *Mat x3 / *Min x2 / [*Sub]) -10/Mines (discovered 2 exits: *Mat / [*Sub]) -9/Materials (discovered 4 exits: *Mat x3 / *Min) -9/Mines (discovered 2 exits: *Mat x2) -8/Materials (discovered 4 exits: *Fac x3 / Gar) -8/Garrison (discovered 3 exits: *Fac x3) -7/Factory (discovered 7 exits: *Fac x4 / *Sto / *Low x2) -7/Waste -7/Factory (discovered 6 exits: *Fac x3 / *Sto / *Low x2) -7/Storage (discovered 1 exit: Fac) History --------- Turn | Location | Event 3 | -11/Scrapyard | Discovered new exit (range 15) 79 | -11/Scrapyard | Entered Materials 102 | -10/Materials | Discovered new exit (range 16) 251 | -10/Materials | Discovered new exit (range 16) 309 | -10/Materials | Build established: Mutant 458 | -10/Materials | Discovered new exit (range 9) 627 | -10/Materials | Identified exit to Mines 636 | -10/Materials | Loaded intel: 13 trap records 643 | -10/Materials | Discovered new exit (range 15) 687 | -10/Materials | Learned 4 Recycling zone layouts 730 | -10/Materials | Learned Materials trap positions 764 | -10/Materials | Learned location of Subcaves (-10) 787 | -10/Materials | Learned location of 2 exits from Subcaves 800 | -10/Materials | Identified exit to Materials 825 | -10/Materials | Repaired Lgt. Treads 860 | -10/Materials | Learned 4 Subcaves zone layouts 1239 | -10/Materials | Central database locked down 1405 | -10/Materials | Core integrity fell below 50% 1910 | -10/Materials | Entered Mines 2241 | -10/Mines | Found the Drone Emporium 2252 | -10/Mines | Found Prototype Device 2253 | -10/Mines | Identified Sensor Drone Bay 2480 | -10/Mines | Met a Derelict who couldn't figure out how to use a Trap Extractor 2628 | -10/Mines | Excavation squad dispatched 2628 | -10/Mines | A large section of the Mines collapsed 2732 | -10/Mines | Discovered exit to Materials (range 15) 2737 | -10/Mines | Discovered new exit (range 11) 2765 | -10/Mines | Core integrity fell below 20% 2770 | -10/Mines | Entered Materials 2770 | -9/Materials | Evolved 2 slots: Propulsion x1, Utility x1 2771 | -9/Materials | Identified exit to Mines 2772 | -9/Materials | Loaded intel: 18 trap records 3050 | -9/Materials | Central database locked down 3795 | -9/Materials | Discovered new exit (range 16) 3974 | -9/Materials | Repaired Corrupted Scythe 4367 | -9/Materials | Discovered new exit (range 6) 4578 | -9/Materials | Learned 2 Storage zone layouts 4654 | -9/Materials | Learned location of Zion (-6) 4827 | -9/Materials | Learned Storage emergency access door positions 4840 | -9/Materials | Discovered new exit (range 8) 4866 | -9/Materials | Identified exit to Materials 5043 | -9/Materials | Learned location of 1 exit from Storage 5203 | -9/Materials | Entered Mines 5206 | -9/Mines | Received a Mining Laser from a helpful Derelict 5256 | -9/Mines | Discovered exit to Materials (range 9) 5399 | -9/Mines | Found a damaged Exp. Sensor Array with a note attached 5402 | -9/Mines | Found Prototype Device 5773 | -9/Mines | Discovered exit to Materials (range 5) 5909 | -9/Mines | Entered Materials 5909 | -8/Materials | Accompanied by 2 allies 5909 | -8/Materials | Evolved 2 slots: Propulsion x1, Utility x1 5914 | -8/Materials | Led the pair of lost Derelicts to an unsafe place 5950 | -8/Materials | Identified Exp. Sensor Array 6516 | -8/Materials | Repaired Cooling System 6676 | -8/Materials | Discovered new exit (range 4) 7209 | -8/Materials | Discovered new exit (range 8) 7417 | -8/Materials | Identified exit to Factory 7485 | -8/Materials | Learned Factory stockpile data 7543 | -8/Materials | Learned location of 1 exit from Lower Caves 7590 | -8/Materials | Learned location of Lower Caves (-7) 7672 | -8/Materials | Learned 12 Factory zone layouts 7728 | -8/Materials | Learned Factory stockpile data 9410 | -8/Materials | Garrison activated, responded to threat 10146 | -8/Materials | Identified exit to Garrison 10146 | -8/Materials | Entered Garrison 10322 | -8/Garrison | Lost 7 parts (4n1u2w) 10466 | -8/Garrison | Triggered checkpoint 10608 | -8/Garrison | Triggered checkpoint 10610 | -8/Garrison | Build established: Scavenger-Mutant 10674 | -8/Garrison | Discovered exit to Factory (range 12) 10894 | -8/Garrison | Discovered exit to Factory (range 12) 10894 | -8/Garrison | Discovered exit to Factory (range 41) 10894 | -8/Garrison | Discovered exit to Factory (range 68) 10934 | -8/Garrison | Garrison Relay disabled 11009 | -8/Garrison | Entered Factory 11009 | -7/Factory | Evolved 2 slots: Utility x2 11010 | -7/Factory | Identified exit to Storage 11011 | -7/Factory | Identified exit to Factory 11356 | -7/Factory | Garrison activated, responded to threat 11433 | -7/Factory | Destroyed 7 combat bots 11509 | -7/Factory | Lost 5 parts (1p2n1u1w) 11650 | -7/Factory | Discovered new exit (range 9) 11801 | -7/Factory | Lost 5 parts (2n1u2w) 11843 | -7/Factory | Identified exit to Lower Caves 11847 | -7/Factory | Build established: Hacker-Mutant 11920 | -7/Factory | Discovered exit to Factory (range 29) 12044 | -7/Factory | Discovered exit to Lower Caves (range 10) 12134 | -7/Factory | Discovered exit to Factory (range 9) 12235 | -7/Factory | Repaired Broken Exp. Sensor Array? 12281 | -7/Factory | Manually triggered Chute Trap 12281 | -7/Factory | Sucked down chute 12281 | -7/Factory | Entered Waste 12282 | -7/Waste | Joined by Warlord forces that had cleared the area 12327 | -7/Waste | Build established: Hacker-Sprinter 12402 | -7/Waste | Discovered new exit (range 12) 12415 | -7/Waste | Identified exit to Factory 12484 | -7/Waste | Entered Factory 12484 | -7/Factory | Accompanied by 20 allies 12542 | -7/Factory | Discovered exit to Lower Caves (range 16) 12548 | -7/Factory | Discovered exit to Factory (range 9) 12573 | -7/Factory | Found Powered Armor 12668 | -7/Factory | Discovered exit to Factory (range 16) 12980 | -7/Factory | Fabricated Cld. VTOL Module? 13062 | -7/Factory | Fabricated Cld. VTOL Module (x1) 13135 | -7/Factory | Garrison activated, responded to threat 13218 | -7/Factory | Repaired Mic. Fission Core 13352 | -7/Factory | Fabricated Cld. VTOL Module? 13371 | -7/Factory | Fabricated Cld. VTOL Module (x1) 13424 | -7/Factory | Discovered exit to Factory (range 16) 13656 | -7/Factory | Lost 4 allies 13737 | -7/Factory | Cargo convoy interrupted 13773 | -7/Factory | Core integrity fell below 50% 13776 | -7/Factory | P-70 Sage assimilated allied BD-6CD(m) 13798 | -7/Factory | Lost 8 allies 13827 | -7/Factory | Lost 3 parts (2u1w) 13892 | -7/Factory | Discovered exit to Lower Caves (range 9) 13971 | -7/Factory | Fabricated Cld. VTOL Module? 14055 | -7/Factory | Core integrity fell below 20% 14084 | -7/Factory | Search patrols dispatched 14120 | -7/Factory | Entered Storage 14149 | -7/Storage | Lost 4 parts (1p1n2u) 14204 | -7/Storage | Destroyed by Y-54 Guardian with Gatling Laser Last Messages --------------- 14147_ R-06 Scavenger destroyed. 14150_ Acquired Tractor Beam. 14151_ Acquired 10 matter. 14152_ R-06 Scavenger collects Prc. Energy Filter. 14153_ C-30 ARC bursts open, deploying its payload. 14153_ S-27 Virus unfolds itself. 14154_ Acquired Lgt. Ion Engine. 14155_ Acquired 10 matter. 14155_ Hacking Suite destroyed. 14172_ C-30 ARC bursts open, deploying its payload. 14172_ P-60 Hacker unfolds itself. 14172_ Cld. VTOL Module destroyed. 14172_ K-01 Serf collects debris. 14176_ S-27 Virus destroyed. 14177_ R-06 Scavenger collects VTOL Module. 14179_ W-25 Informer sends out distress signal. 14183_ System corrupted: Energy discharge (-36). 14198_ K-01 Serf cleans the Storage Shell. 14199_ The unstable cave ceiling collapses. 14202_ W-25 Informer sends out distress signal. Map ----- +----------------------------------------------------+ | | | | | | | | | | | | | | | | | | | | | | | | | | | | | | | | | | | ?????????????????????????????????????????????????? | | ?????????????????????????????????????????????????? | | ?????????????????????????????????????????????????? | | ?????????????????????#######?????????????????????? | | ?????????????????????# #############?????????? | | ?????????????????????# ??????????? | | ?????????????????????# ??????????? | | ?????????????????????# Y ??????????? | | ?????????????????????# @ ####+######+??????????? | | ???????????????????#####+####?# T## ??????????? | | ???????????????????# #?##"#### ??????????? | | ???????????????????# """"" #?# ### ??????????? | | ???????????????????# """"" ### ### ??????????? | | ???????????????????# """"" ""# ### "??????????? | | ???????????????????# T"# ### "??????????? | | ???????????????##### " "" ""####### "??????????? | | ????????????#### + "R"" ###?????# "??????????? | | ????????????? # # """ #???????# ??????????? | | ?????????????" + # ]#???????###??????????? | | ?????????????" # # ########????????????????????? | | ?????????????" + ###???#######?######??????????? | | ????????????"" # #?????# #?# ??????????? | | ???????????"" # #?????# #?# ??????????? | | ?????# """" # #?????#T #?# ??????????? | | ?????# # #?????## ##?# ??????? ??? | | ?????########"## ########+###########?????? ### | | ?????#"""####### ?????? # | | ?#####"T"##"##?# ?????? + | | ?# ##??# ?????? # | | ?# #??######+##### ###########?????# # | | ## """ """ #?? # # ?????# # | | "" """ """ #??"""" """"" # # """" """"????#" # | | Y """ """ #??"""" """"" # # """" """"????#%" # | +----------------------------------------------------+ Best States ------------- Heat Dissipation 56 Energy Generation 18 Energy Capacity 290 Matter Stores 300 Matter Capacity 300 Sight Range 16 Robot Scan Range 20 Terrain Scan Density 10 Armor Coverage 750 Utility Shielding 66 Evasion (%) 65 Recoil Reduction 4 Offensive Hacking 40 Defensive Hacking 10 Trap Extractor Capacity 4 Item Schematics ----------------- Imp. Utility Shielding | -9/Materials | Scanalyzed Transport Network Coupler | -9/Materials | Scanalyzed Scythe | -9/Materials | Scanalyzed Exp. Sensor Array | -8/Materials | Scanalyzed Cld. VTOL Module | -7/Factory | Hacked Robot Schematics ------------------ M-13 Machinist | -10/Materials | Hacked Fabricated ------------ Cld. VTOL Module | x1 | -7/Factory Cld. VTOL Module | x1 | -7/Factory Cld. VTOL Module | x1 | -7/Factory Cld. VTOL Module | x1 | -7/Factory Cld. VTOL Module | x1 | -7/Factory Repaired ---------- Lgt. Treads | 23% | -10/Materials Scythe | 94% | -9/Materials | Corrupted Cooling System | 38% | -8/Materials Exp. Sensor Array | 62% | -7/Factory | Broken Mic. Fission Core | 50% | -7/Factory Alien Tech Used ----------------- None Achievements -------------- None Challenges ------------ None Game ------ Seed RingCargoDatajack Manual? 0 Play Time 01:17:41 Cumulative 689.9 hours Start 2025.05.12 @ 21:05:41 End 2025.05.13 @ 08:31:10 Sessions 3 Manual Loads 0 Difficulty Rogue Special Mode None Game No. 368 Rogue 368 Adventurer 0 Explorer 0 Win Type - Total 55 Types 37/4/5/2/1/1/3/1/1/0 Lore% 91 Gallery% 83 Achievement% 91 Wizard Run 0 Options --------- Layout 0 ASCII 0 Keyboard 1 Movement Numpad Keybinds 0 Fullscreen 2 Font 18/SmallcapsGlow Map View 76x50 Zoom Use 0% Tactical HUD 1 Map Filters NONE Filters NONE Steam 1 RUN: cb3dc55b-6828-47e3-baac-303d55707371